fUSD/lending_fUSD_20251221
["ID","MTS","AMOUNT","RATE_DAILY","PERIOD"]
[399392941,1766326249145,-293.018097,0.00018,2]
[399392942,1766326249154,-293.018097,0.00018,2]
[399392943,1766326249162,-293.018097,0.00018,2]
[399392944,1766326249172,-945.676086,0.00018,2]
[399392945,1766326249181,-945.676086,0.00018,2]
[399392946,1766326249189,-945.676086,0.00018,2]
[399392947,1766326249198,-945.676086,0.00018,2]
[399392948,1766326249207,-1000.0,0.00018082,2]
[399392949,1766326249221,-1772.55333379,0.000181,2]
[399392950,1766326249231,-2500.0,0.00018164,2]
[399392951,1766326249240,-1003.04548544,0.00018164,2]
[399392952,1766326249249,-2637.88145515,0.00018164,2]
[399392953,1766326249259,-2500.0,0.00018164,2]
[399392954,1766326249269,-734.47830759,0.00018164,2]
[399392955,1766326249277,-2500.0,0.00018164,2]
[399392956,1766326249286,-439.42444411,0.00018164,2]
[399392957,1766326249296,-2443.06963152,0.00018164,2]
[399392958,1766326249305,-2500.0,0.00018164,2]
[399392959,1766326249315,-1860.83448827,0.00018164,2]
[399392960,1766326249324,-2500.0,0.00018164,2]
[399392961,1766326249333,-3761.33843454,0.00018204,2]
[399392962,1766326249346,-298.26089446,0.00018292,2]
[399392963,1766326249358,-334.5472959,0.00018292,2]
[399392964,1766326249367,-1336.0,0.00018672,2]
[399392965,1766326249376,-3000.0,0.00018712,2]
[399392966,1766326249385,-3000.0,0.00018712,2]
[399392967,1766326249395,-1065.61474305,0.00018712,2]
[399392968,1766326249404,-2648.62512129,0.00018712,2]
[399392969,1766326249415,-3000.0,0.00018712,2]
[399392970,1766326249424,-1158.44043386,0.00018746,2]
[399392971,1766326249435,-1000.0,0.0001876,2]
[399392972,1766326249444,-518.0,0.00018761,2]
[399392973,1766326249453,-1197.0,0.00018761,2]
[399392974,1766326249462,-927.291,0.00018761,2]
[399392975,1766326249472,-4803.0,0.00018761,2]
[399392976,1766326249482,-580.965,0.00018761,2]
[399392977,1766326249491,-2429.0,0.00018761,2]
[399392978,1766326249500,-150.99,0.000188,2]
[399392979,1766326249516,-150.99,0.000188,2]
[399392980,1766326249525,-150.99,0.000188,2]
[399392981,1766326249538,-150.99,0.000188,2]
[399392982,1766326249548,-150.99,0.000188,2]
[399392983,1766326249557,-150.99,0.000188,2]
[399392984,1766326249567,-150.99,0.000188,2]
[399392985,1766326249576,-150.99,0.000188,2]
[399392986,1766326249586,-150.99,0.000188,2]
[399392987,1766326249596,-150.99,0.000188,2]
[399392988,1766326249605,-150.99,0.000188,2]
[399392989,1766326249614,-160.39542526,0.000189,2]
[399392990,1766326249623,-9035.0,0.00018922,2]
[399392991,1766326249632,-150.0,0.0001896,2]
[399392992,1766326249640,-250.0,0.0001896,2]
[399392993,1766326249652,-250.0,0.00019,3]
[399392994,1766326249662,-105544.72904044,0.00019,2]
[399392995,1766326249671,-554.55953732,0.00019,2]
[399392996,1766326249679,-356.84579956,0.0001901,7]
[399392997,1766326249690,-308.90340785,0.00019082,2]
[399392998,1766326249701,-736.669496,0.00019178,2]
[399392999,1766326249710,-736.669496,0.00019178,2]
[399393000,1766326249719,-736.669496,0.00019178,2]
[399393001,1766326249728,-736.669496,0.00019178,2]
[399393002,1766326249738,-736.669496,0.00019178,2]
[399393003,1766326249747,-736.669496,0.00019178,2]
[399393004,1766326249756,-736.669496,0.00019178,2]
[399393005,1766326249765,-736.669496,0.00019178,2]
[399393006,1766326249775,-219.95868703,0.0001926,2]
[399393007,1766326249785,-3303.48287397,0.0001926,2]
[399393008,1766326249794,-3500.0,0.0001926,2]
[399393009,1766326249804,-1000.0,0.00019438,2]
[399393010,1766326249813,-309.29654756,0.00019661,2]
[399393011,1766326249823,-346.92554585,0.00019661,2]
[399393012,1766326249832,-3341.26500224,0.00019808,2]
[399393013,1766326249841,-10877.62322293,0.0002,2]
[399393014,1766326249850,-1527.86571511,0.0002,2]
[399393015,1766326249859,-7958.56344693,0.0002,2]
[399393016,1766326249869,-250.0,0.0002,3]
[399393017,1766326249879,-550.54433387,0.0002,2]
[399393018,1766326249889,-186.5,0.0002,2]
[399393019,1766326249899,-188.59099171,0.0002,20]
[399393020,1766326249909,-246.957396,0.0002,2]
[399393021,1766326249918,-1000.0,0.0002,7]
[399393022,1766326249928,-8720.0,0.0002001,2]
[399393023,1766326249937,-1985.60848995,0.0002009,2]
[399393024,1766326249946,-1000.0,0.00020116,2]
[399393025,1766326249955,-1000.0,0.00020187,2]
[399393026,1766326249964,-500.0,0.00020547,2]
[399393027,1766326249973,-105544.72904044,0.00020548,2]
[399393028,1766326249983,-191.85,0.00020548,2]
[399393029,1766326249993,-22571.15008706,0.000207,2]
[399393030,1766326250002,-1000.0,0.00020795,2]
[399393031,1766326250014,-4746.0,0.00020814,2]
[399393032,1766326250024,-20000.0,0.00021,2]
[399393033,1766326250033,-160.0,0.00021,7]
[399393034,1766326250042,-589.72438625,0.00021,21]
[399393035,1766326250052,-320.74051982,0.0002103,2]
[399393036,1766326250061,-359.76179104,0.0002103,2]
[399393037,1766326250071,-12466.61,0.00021068,2]
[399393038,1766326250080,-397.16543724,0.00021415,2]
[399393039,1766326250089,-57327.80658221,0.000215,2]
[399393040,1766326250098,-3822.4,0.00021627,2]
[399393041,1766326250108,-500.0,0.00021753,2]
[399393042,1766326250119,-518.0,0.00021761,2]
[399393043,1766326250129,-1197.0,0.00021761,2]
[399393044,1766326250137,-911.0,0.00021761,2]
[399393045,1766326250146,-4803.0,0.00021761,2]
[399393046,1766326250155,-564.0,0.00021761,2]
[399393047,1766326250164,-2429.0,0.00021761,2]
[399393048,1766326250174,-150.0,0.000219,2]
[399393049,1766326250184,-500.0,0.00021917,2]
[399393050,1766326250192,-500.0,0.00021917,3]
[399393051,1766326250202,-500.0,0.00021917,4]
[399393052,1766326250211,-500.0,0.00021917,5]
[399393053,1766326250223,-500.0,0.00021917,6]
[399393054,1766326250232,-500.0,0.00021917,7]
[399393055,1766326250241,-500.0,0.00021917,8]
[399393056,1766326250251,-500.0,0.00021917,9]
[399393057,1766326250263,-500.0,0.00021917,10]
[399393058,1766326250272,-500.0,0.00021917,11]
[399393059,1766326250281,-500.0,0.00021917,12]
[399393060,1766326250291,-500.0,0.00021917,13]
[399393061,1766326250301,-500.0,0.00021917,14]
[399393062,1766326250310,-479.14737294,0.00021917,15]
[399393063,1766326250319,-151.0,0.00021918,2]
[399393064,1766326250328,-151.0,0.00021918,2]
[399393065,1766326250337,-5000.0,0.00021918,2]
[399393066,1766326250346,-150.0,0.0002196,2]
[399393067,1766326250356,-150.0,0.0002196,2]
[399393068,1766326250364,-4162.79387486,0.00022,2]
[399393069,1766326250373,-3076.87,0.00022,7]
[399393070,1766326250382,-4128.96277353,0.00022,2]
[399393071,1766326250391,-794.26778141,0.00022,7]
[399393072,1766326250401,-332.60791905,0.00022399,2]
[399393073,1766326250410,-373.07297731,0.00022399,2]
[399393074,1766326250420,-250.0,0.00022448,2]
[399393075,1766326250429,-161.45272026,0.000226,3]
[399393076,1766326250438,-1158.44043386,0.00022777,2]
[399393077,1766326250447,-350.0,0.00022996,2]
[399393078,1766326250456,-151.17822928,0.00023142,2]
[399393079,1766326250465,-3822.4,0.00023397,2]
[399393080,1766326250474,-552.13552845,0.00023544,2]
[399393081,1766326250485,-344.91441206,0.00023768,2]
[399393082,1766326250494,-386.87667747,0.00023768,2]
[399393083,1766326250502,-7477.36847944,0.00024,2]
[399393084,1766326250512,-3076.87,0.000243,7]
[399393085,1766326250521,-219.42,0.00024658,2]
[399393086,1766326250530,-1000.0,0.00024658,2]
[399393087,1766326250539,-151.0,0.00024658,2]
[399393088,1766326250548,-518.0,0.00024761,2]
[399393089,1766326250557,-1197.0,0.00024761,2]
[399393090,1766326250566,-911.0,0.00024761,2]
[399393091,1766326250575,-4803.0,0.00024761,2]
[399393092,1766326250584,-564.0,0.00024761,2]
[399393093,1766326250593,-2429.0,0.00024761,2]
[399393094,1766326250603,-1985.60848995,0.00024793,2]
[399393095,1766326250612,-151.17822928,0.00024795,2]
[399393096,1766326250621,-151.0,0.00024797,7]
[399393097,1766326250630,-300.0,0.00024799,10]
[399393098,1766326250639,-666.0,0.00024799,2]
[399393099,1766326250649,-500.0,0.00024799,2]
[399393100,1766326250658,-500.0,0.00024799,2]
[399393101,1766326250667,-150.0,0.00024799,2]
[399393102,1766326250676,-151.0,0.000248,7]
[399393103,1766326250685,-293.018097,0.000248,7]
[399393104,1766326250694,-293.018097,0.000248,7]
[399393105,1766326250703,-293.018097,0.000248,7]
[399393106,1766326250712,-293.018097,0.000248,7]
[399393107,1766326250722,-945.676086,0.000248,2]
[399393108,1766326250731,-945.676086,0.000248,2]
[399393109,1766326250741,-945.676086,0.000248,2]
[399393110,1766326250750,-945.676086,0.000248,2]
[399393111,1766326250760,-736.669496,0.000248,7]
[399393112,1766326250769,-736.669496,0.000248,7]
[399393113,1766326250778,-736.669496,0.000248,7]
[399393114,1766326250787,-736.669496,0.000248,7]
[399393115,1766326250797,-78210.4129488,0.000248,3]
[399393116,1766326250806,-500.0,0.00024899,2]
[399393117,1766326250815,-500.0,0.00024899,2]
[399393118,1766326250825,-300.0,0.00024899,10]
[399393119,1766326250835,-666.0,0.00024899,2]
[399393120,1766326250844,-492933.32787,0.000249,3]
[399393121,1766326250853,-300.0,0.00024959,10]
[399393122,1766326250863,-666.0,0.00024959,2]
[399393123,1766326250872,-300.0,0.00024999,10]
[399393124,1766326250881,-666.0,0.00024999,2]
[399393125,1766326250890,-508.67595072,0.00025,7]
[399393126,1766326250900,-150.0,0.00025,2]
[399393127,1766326250909,-150.0,0.00025,2]
[399393128,1766326250918,-150.0,0.00025,2]
[399393129,1766326250928,-150.0,0.00025,2]
[399393130,1766326250937,-150.0,0.00025,2]
[399393131,1766326250946,-150.0,0.00025,2]
[399393132,1766326250955,-500.0,0.00025136,2]
[399393133,1766326250965,-500.0,0.00025136,2]
[399393134,1766326250974,-500.0,0.00025136,2]
[399393135,1766326250983,-500.0,0.00025136,2]
[399393136,1766326250991,-500.0,0.00025136,2]
[399393137,1766326251000,-500.0,0.00025136,2]
[399393138,1766326251010,-500.0,0.00025136,2]
[399393139,1766326251019,-500.0,0.00025136,2]
[399393140,1766326251028,-500.0,0.00025136,2]
[399393141,1766326251038,-500.0,0.00025136,2]
[399393142,1766326251047,-500.0,0.00025136,2]
[399393143,1766326251056,-500.0,0.00025136,2]
[399393144,1766326251065,-500.0,0.00025136,2]
[399393145,1766326251074,-500.0,0.00025136,2]
[399393146,1766326251082,-500.0,0.00025136,2]
[399393147,1766326251091,-500.0,0.00025136,2]
[399393148,1766326251100,-500.0,0.00025136,2]
[399393149,1766326251110,-500.0,0.00025136,2]
[399393150,1766326251118,-500.0,0.00025136,2]
[399393151,1766326251127,-500.0,0.00025136,2]
[399393152,1766326251136,-500.0,0.00025136,2]
[399393153,1766326251145,-500.0,0.00025136,2]
[399393154,1766326251154,-500.0,0.00025136,2]
[399393155,1766326251163,-500.0,0.00025136,2]
[399393156,1766326251172,-500.0,0.00025136,2]
[399393157,1766326251181,-500.0,0.00025136,2]
[399393158,1766326251190,-500.0,0.00025136,2]
[399393159,1766326251200,-500.0,0.00025136,2]
[399393160,1766326251211,-500.0,0.00025136,2]
[399393161,1766326251225,-500.0,0.00025136,2]
[399393162,1766326251234,-500.0,0.00025136,2]
[399393163,1766326251244,-500.0,0.00025136,2]
[399393164,1766326251256,-500.0,0.00025136,2]
[399393165,1766326251265,-500.0,0.00025136,2]
[399393166,1766326251274,-500.0,0.00025136,2]
[399393167,1766326251284,-500.0,0.00025136,2]
[399393168,1766326251293,-500.0,0.00025136,2]
[399393169,1766326251302,-500.0,0.00025136,2]
[399393170,1766326251311,-500.0,0.00025136,2]
[399393171,1766326251320,-500.0,0.00025136,2]
[399393172,1766326251329,-500.0,0.00025136,2]
[399393173,1766326251339,-500.0,0.00025136,2]
[399393174,1766326251349,-500.0,0.00025136,2]
[399393175,1766326251359,-500.0,0.00025136,2]
[399393176,1766326251368,-500.0,0.00025136,2]
[399393177,1766326251377,-500.0,0.00025136,2]
[399393178,1766326251386,-500.0,0.00025136,2]
[399393179,1766326251395,-500.0,0.00025136,2]
[399393180,1766326251404,-500.0,0.00025136,2]
[399393181,1766326251413,-500.0,0.00025136,2]
[399393182,1766326251422,-500.0,0.00025136,2]
[399393183,1766326251431,-500.0,0.00025136,2]
[399393184,1766326251440,-500.0,0.00025136,2]
[399393185,1766326251449,-500.0,0.00025136,2]
[399393186,1766326251458,-500.0,0.00025136,2]
[399393187,1766326251467,-500.0,0.00025136,2]
[399393188,1766326251476,-500.0,0.00025136,2]
[399393189,1766326251486,-500.0,0.00025136,2]
[399393190,1766326251495,-500.0,0.00025136,2]
[399393191,1766326251504,-500.0,0.00025136,2]
[399393192,1766326251515,-500.0,0.00025136,2]
[399393193,1766326251524,-500.0,0.00025136,2]
[399393194,1766326251532,-500.0,0.00025136,2]
[399393195,1766326251542,-500.0,0.00025136,2]
[399393196,1766326251551,-500.0,0.00025136,2]
[399393197,1766326251560,-500.0,0.00025136,2]
[399393198,1766326251570,-500.0,0.00025136,2]
[399393199,1766326251579,-500.0,0.00025136,2]
[399393200,1766326251587,-500.0,0.00025136,2]
[399393201,1766326251597,-500.0,0.00025136,2]
[399393202,1766326251606,-500.0,0.00025136,2]
[399393203,1766326251616,-500.0,0.00025136,2]
[399393204,1766326251626,-500.0,0.00025136,2]
[399393205,1766326251635,-500.0,0.00025136,2]
[399393206,1766326251644,-500.0,0.00025136,2]
[399393207,1766326251653,-500.0,0.00025136,2]
[399393208,1766326251661,-500.0,0.00025136,2]
[399393209,1766326251671,-500.0,0.00025136,2]
[399393210,1766326251680,-500.0,0.00025136,2]
[399393211,1766326251690,-500.0,0.00025136,2]
[399393212,1766326251699,-500.0,0.00025136,2]
[399393213,1766326251709,-500.0,0.00025136,2]
[399393214,1766326251718,-500.0,0.00025136,2]
[399393215,1766326251727,-500.0,0.00025136,2]
[399393216,1766326251737,-500.0,0.00025136,2]
[399393217,1766326251745,-500.0,0.00025136,2]
[399393218,1766326251757,-500.0,0.00025136,2]
[399393219,1766326251766,-500.0,0.00025136,2]
[399393220,1766326251775,-500.0,0.00025136,2]
[399393221,1766326251784,-500.0,0.00025136,2]
[399393222,1766326251793,-500.0,0.00025136,2]
[399393223,1766326251803,-500.0,0.00025136,2]
[399393224,1766326251813,-500.0,0.00025136,2]
[399393225,1766326251823,-500.0,0.00025136,2]
[399393226,1766326251832,-500.0,0.00025136,2]
[399393227,1766326251842,-500.0,0.00025136,2]
[399393228,1766326251851,-500.0,0.00025136,2]
[399393229,1766326251860,-500.0,0.00025136,2]
[399393230,1766326251869,-500.0,0.00025136,2]
[399393231,1766326251878,-500.0,0.00025136,2]
[399393232,1766326251888,-500.0,0.00025136,2]
[399393233,1766326251897,-500.0,0.00025136,2]
[399393234,1766326251906,-500.0,0.00025136,2]
[399393235,1766326251914,-500.0,0.00025136,2]
[399393236,1766326251923,-500.0,0.00025136,2]
[399393237,1766326251932,-500.0,0.00025136,2]
[399393238,1766326251941,-500.0,0.00025136,2]
[399393239,1766326251950,-500.0,0.00025136,2]
[399393240,1766326251960,-500.0,0.00025136,2]
[399393241,1766326251969,-500.0,0.00025136,2]
[399393242,1766326251978,-500.0,0.00025136,2]
[399393243,1766326251987,-500.0,0.00025136,2]
[399393244,1766326251997,-500.0,0.00025136,2]
[399393245,1766326252008,-500.0,0.00025136,2]
[399393246,1766326252018,-500.0,0.00025136,2]
[399393247,1766326252027,-500.0,0.00025136,2]
[399393248,1766326252036,-500.0,0.00025136,2]
[399393249,1766326252047,-500.0,0.00025136,2]
[399393250,1766326252057,-500.0,0.00025136,2]
[399393251,1766326252066,-500.0,0.00025136,2]
[399393252,1766326252075,-500.0,0.00025136,2]
[399393253,1766326252084,-500.0,0.00025136,2]
[399393254,1766326252094,-500.0,0.00025136,2]
[399393255,1766326252103,-500.0,0.00025136,2]
[399393256,1766326252112,-500.0,0.00025136,2]
[399393257,1766326252121,-500.0,0.00025136,2]
[399393258,1766326252130,-500.0,0.00025136,2]
[399393259,1766326252139,-500.0,0.00025136,2]
[399393260,1766326252148,-500.0,0.00025136,2]
[399393261,1766326252158,-500.0,0.00025136,2]
[399393262,1766326252167,-500.0,0.00025136,2]
[399393263,1766326252176,-500.0,0.00025136,2]
[399393264,1766326252185,-500.0,0.00025136,2]
[399393265,1766326252194,-500.0,0.00025136,2]
[399393266,1766326252203,-500.0,0.00025136,2]
[399393267,1766326252213,-500.0,0.00025136,2]
[399393268,1766326252225,-500.0,0.00025136,2]
[399393269,1766326252236,-500.0,0.00025136,2]
[399393270,1766326252245,-500.0,0.00025136,2]
[399393271,1766326252257,-500.0,0.00025136,2]
[399393272,1766326252268,-500.0,0.00025136,2]
[399393273,1766326252277,-500.0,0.00025136,2]
[399393274,1766326252287,-500.0,0.00025136,2]
[399393275,1766326252298,-500.0,0.00025136,2]
[399393276,1766326252308,-500.0,0.00025136,2]
[399393277,1766326252318,-500.0,0.00025136,2]
[399393278,1766326252328,-500.0,0.00025136,2]
[399393279,1766326252337,-500.0,0.00025136,2]
[399393280,1766326252346,-500.0,0.00025136,2]
[399393281,1766326252356,-500.0,0.00025136,2]
[399393282,1766326252365,-500.0,0.00025136,2]
[399393283,1766326252375,-500.0,0.00025136,2]
[399393284,1766326252384,-500.0,0.00025136,2]
[399393285,1766326252393,-500.0,0.00025136,2]
[399393286,1766326252403,-500.0,0.00025136,2]
[399393287,1766326252412,-500.0,0.00025136,2]
[399393288,1766326252422,-500.0,0.00025136,2]
[399393289,1766326252431,-500.0,0.00025136,2]
[399393290,1766326252440,-500.0,0.00025136,2]
[399393291,1766326252450,-500.0,0.00025136,2]
[399393292,1766326252460,-500.0,0.00025136,2]
[399393293,1766326252469,-500.0,0.00025136,2]
[399393294,1766326252478,-500.0,0.00025136,2]
[399393295,1766326252488,-500.0,0.00025136,2]
[399393296,1766326252497,-500.0,0.00025136,2]
[399393297,1766326252508,-500.0,0.00025136,2]
[399393298,1766326252517,-500.0,0.00025136,2]
[399393299,1766326252526,-500.0,0.00025136,2]
[399393300,1766326252535,-500.0,0.00025136,2]
[399393301,1766326252544,-788.0,0.00025136,2]
[399393302,1766326252554,-500.0,0.00025136,2]
[399393303,1766326252563,-500.0,0.00025136,2]
[399393304,1766326252571,-500.0,0.00025136,2]
[399393305,1766326252581,-500.0,0.00025136,2]
[399393306,1766326252589,-500.0,0.00025136,2]
[399393307,1766326252598,-500.0,0.00025136,2]
[399393308,1766326252607,-500.0,0.00025136,2]
[399393309,1766326252616,-500.0,0.00025136,2]
[399393310,1766326252625,-500.0,0.00025136,2]
[399393311,1766326252634,-500.0,0.00025136,2]
[399393312,1766326252642,-500.0,0.00025136,2]
[399393313,1766326252651,-500.0,0.00025136,2]
[399393314,1766326252661,-500.0,0.00025136,2]
[399393315,1766326252670,-500.0,0.00025136,2]
[399393316,1766326252679,-500.0,0.00025136,2]
[399393317,1766326252688,-788.0,0.00025136,2]
[399393318,1766326252697,-500.0,0.00025136,2]
[399393319,1766326252706,-500.0,0.00025136,2]
[399393320,1766326252715,-500.0,0.00025136,2]
[399393321,1766326252724,-500.0,0.00025136,2]
[399393322,1766326252734,-500.0,0.00025136,2]
[399393323,1766326252743,-500.0,0.00025136,2]
[399393324,1766326252752,-500.0,0.00025136,2]
[399393325,1766326252763,-500.0,0.00025136,2]
[399393326,1766326252772,-500.0,0.00025136,2]
[399393327,1766326252781,-500.0,0.00025136,2]
[399393328,1766326252790,-500.0,0.00025136,2]
[399393329,1766326252800,-500.0,0.00025136,2]
[399393330,1766326252809,-500.0,0.00025136,2]
[399393331,1766326252819,-500.0,0.00025136,2]
[399393332,1766326252828,-500.0,0.00025136,2]
[399393333,1766326252837,-500.0,0.00025136,2]
[399393334,1766326252846,-500.0,0.00025136,2]
[399393335,1766326252973,-500.0,0.00025136,2]
[399393336,1766326252990,-500.0,0.00025136,2]
[399393337,1766326253000,-500.0,0.00025136,2]
[399393338,1766326253009,-500.0,0.00025136,2]
[399393339,1766326253019,-500.0,0.00025136,2]
[399393340,1766326253029,-500.0,0.00025136,2]
[399393341,1766326253039,-500.0,0.00025136,2]
[399393342,1766326253049,-500.0,0.00025136,2]
[399393343,1766326253059,-500.0,0.00025136,2]
[399393344,1766326253069,-500.0,0.00025136,2]
[399393345,1766326253079,-500.0,0.00025136,2]
[399393346,1766326253089,-500.0,0.00025136,2]
[399393347,1766326253099,-500.0,0.00025136,2]
[399393348,1766326253108,-500.0,0.00025136,2]
[399393349,1766326253119,-500.0,0.00025136,2]
[399393350,1766326253130,-500.0,0.00025136,2]
[399393351,1766326253140,-500.0,0.00025136,2]
[399393352,1766326253150,-500.0,0.00025136,2]
[399393353,1766326253162,-500.0,0.00025136,2]
[399393354,1766326253172,-500.0,0.00025136,2]
[399393355,1766326253183,-500.0,0.00025136,2]
[399393356,1766326253193,-500.0,0.00025136,2]
[399393357,1766326253203,-500.0,0.00025136,2]
[399393358,1766326253217,-500.0,0.00025136,2]
[399393359,1766326253227,-500.0,0.00025136,2]
[399393360,1766326253237,-500.0,0.00025136,2]
[399393361,1766326253247,-500.0,0.00025136,2]
[399393362,1766326253261,-500.0,0.00025136,2]
[399393363,1766326253271,-500.0,0.00025136,2]
[399393364,1766326253281,-500.0,0.00025136,2]
[399393365,1766326253293,-500.0,0.00025136,2]
[399393366,1766326253303,-500.0,0.00025136,2]
[399393367,1766326253313,-500.0,0.00025136,2]
[399393368,1766326253323,-500.0,0.00025136,2]
[399393369,1766326253334,-500.0,0.00025136,2]
[399393370,1766326253344,-500.0,0.00025136,2]
[399393371,1766326253355,-500.0,0.00025136,2]
[399393372,1766326253365,-500.0,0.00025136,2]
[399393373,1766326253375,-500.0,0.00025136,2]
[399393374,1766326253386,-500.0,0.00025136,2]
[399393375,1766326253395,-500.0,0.00025136,2]
[399393376,1766326253406,-500.0,0.00025136,2]
[399393377,1766326253415,-500.0,0.00025136,2]
[399393378,1766326253425,-357.6762453,0.00025137,2]
[399393379,1766326253435,-401.19111454,0.00025137,2]
[399393380,1766326253444,-3822.4,0.00025167,2]
[399393381,1766326253454,-666.0,0.00025282,2]
[399393382,1766326253465,-1281.03308485,0.00025444,2]
[399393383,1766326253475,-597.19377965,0.0002599,2]
[399393384,1766326253485,-676.23992225,0.00025999,2]
[399393385,1766326253495,-215.26219273,0.00026,2]
[399393386,1766326253505,-7436.86186478,0.00026,10]
[399393387,1766326253517,-162.03137973,0.00026,2]
[399393388,1766326253527,-151.17822928,0.00026448,2]
[399393389,1766326253537,-5093.58039381,0.00026497,2]
[399393390,1766326253548,-5000.0,0.00026497,2]
[399393391,1766326253558,-5000.0,0.00026497,2]
[399393392,1766326253568,-5000.0,0.00026497,2]
[399393393,1766326253578,-370.91026638,0.00026506,2]
[399393394,1766326253588,-416.03518578,0.00026506,2]
[399393395,1766326253598,-1000.0,0.00026676,2]
[399393396,1766326253608,-1158.44043386,0.00026808,2]
[399393397,1766326253618,-3822.4,0.00026936,2]
[399393398,1766326253627,-250.0,0.00027,2]
[399393399,1766326253637,-1028.07011982,0.00027,2]
[399393400,1766326253646,-530.0,0.00027,2]
[399393401,1766326253656,-500.0,0.00027,27]
[399393402,1766326253666,-500.0,0.00027,18]
[399393403,1766326253675,-3330.16289478,0.00027084,2]
[399393404,1766326253686,-500.0,0.0002735,2]
[399393405,1766326253695,-500.0,0.0002735,2]
[399393406,1766326253705,-500.0,0.0002735,2]
[399393407,1766326253715,-500.0,0.0002735,2]
[399393408,1766326253725,-500.0,0.0002735,2]
[399393409,1766326253735,-500.0,0.0002735,2]
[399393410,1766326253745,-500.0,0.0002735,2]
[399393411,1766326253756,-500.0,0.0002735,2]
[399393412,1766326253773,-500.0,0.0002735,2]
[399393413,1766326253793,-500.0,0.0002735,2]
[399393414,1766326253804,-500.0,0.0002735,2]
[399393415,1766326253821,-500.0,0.0002735,2]
[399393416,1766326253841,-500.0,0.0002735,2]
[399393417,1766326253852,-500.0,0.0002735,2]
[399393418,1766326253862,-500.0,0.0002735,2]
[399393419,1766326253872,-500.0,0.0002735,2]
[399393420,1766326253881,-500.0,0.0002735,2]
[399393421,1766326253891,-500.0,0.0002735,2]
[399393422,1766326253901,-500.0,0.0002735,2]
[399393423,1766326253911,-500.0,0.0002735,2]
[399393424,1766326253921,-500.0,0.0002735,2]
[399393425,1766326253930,-500.0,0.0002735,2]
[399393426,1766326253940,-500.0,0.0002735,2]
[399393427,1766326253949,-500.0,0.0002735,2]
[399393428,1766326253959,-500.0,0.0002735,2]
[399393429,1766326253969,-500.0,0.0002735,2]
[399393430,1766326253979,-873.0,0.0002735,2]
[399393431,1766326253989,-500.0,0.0002735,2]
[399393432,1766326253999,-500.0,0.0002735,2]
[399393433,1766326254010,-500.0,0.0002735,2]
[399393434,1766326254033,-500.0,0.0002735,2]
[399393435,1766326254044,-500.0,0.0002735,2]
[399393436,1766326254054,-500.0,0.0002735,2]
[399393437,1766326254065,-500.0,0.0002735,2]
[399393438,1766326254076,-500.0,0.0002735,2]
[399393439,1766326254087,-500.0,0.0002735,2]
[399393440,1766326254098,-500.0,0.0002735,2]